[Event "*** Titled Tuesday Blitz"]
[Site "Chess.com"]
[Date "2020.04.14"]
[Round "3"]
[White "mbachez"]
[Black "XDPS"]
[Result "1/2-1/2"]
[WhiteElo "2493"]
[BlackElo "2732"]
[TimeControl "180+1"]
[EndTime "10:30:16 PDT"]
[Termination "Game drawn - insufficient material"]

1. e4 {[%clk 0:03:00.9]} 1... e5 {[%clk 0:02:58.2]} 2. Nf3 {[%clk 0:03:00.6]}
2... Nc6 {[%clk 0:02:57.8]} 3. Bb5 {[%clk 0:03:00.7]} 3... a6 {[%clk 0:02:56.1]}
4. Ba4 {[%clk 0:03:00.8]} 4... d6 {[%clk 0:02:56.4]} 5. O-O {[%clk 0:02:59.6]}
5... Bd7 {[%clk 0:02:51.6]} 6. Re1 {[%clk 0:02:59.4]} 6... g6 {[%clk 0:02:49.5]}
7. c3 {[%clk 0:02:57.9]} 7... Bg7 {[%clk 0:02:49.7]} 8. d4 {[%clk 0:02:57.8]}
8... Nf6 {[%clk 0:02:50.3]} 9. Bg5 {[%clk 0:02:51.9]} 9... h6 {[%clk 0:02:45.7]}
10. Bh4 {[%clk 0:02:51.8]} 10... Qe7 {[%clk 0:02:41.1]} 11. Nbd2 {[%clk
0:02:46.6]} 11... b5 {[%clk 0:02:35.1]} 12. Bb3 {[%clk 0:02:23.8]} 12... O-O
{[%clk 0:02:33.8]} 13. a4 {[%clk 0:02:20]} 13... Kh7 {[%clk 0:02:15.1]} 14. a5
{[%clk 0:02:17.5]} 14... Rae8 {[%clk 0:02:09]} 15. Bd5 {[%clk 0:02:04.3]} 15...
Nb8 {[%clk 0:02:05.3]} 16. dxe5 {[%clk 0:01:59.1]} 16... dxe5 {[%clk 0:02:03.6]}
17. Nf1 {[%clk 0:01:59]} 17... c6 {[%clk 0:02:03]} 18. Ba2 {[%clk 0:01:52.3]}
18... Qc5 {[%clk 0:01:51.1]} 19. Qd2 {[%clk 0:01:33.3]} 19... Bg4 {[%clk
0:01:45.6]} 20. b4 {[%clk 0:01:32.6]} 20... Qa7 {[%clk 0:01:42.4]} 21. Qe3
{[%clk 0:01:21.2]} 21... Qxe3 {[%clk 0:01:38.8]} 22. Nxe3 {[%clk 0:01:20.9]}
22... Bc8 {[%clk 0:01:26.1]} 23. Nd2 {[%clk 0:01:07.3]} 23... Rd8 {[%clk
0:01:19.4]} 24. Rad1 {[%clk 0:01:06.6]} 24... Rd3 {[%clk 0:01:10.7]} 25. Bxf6
{[%clk 0:00:42]} 25... Bxf6 {[%clk 0:01:09.5]} 26. Nb1 {[%clk 0:00:32.3]} 26...
Rxd1 {[%clk 0:01:01.4]} 27. Rxd1 {[%clk 0:00:32.5]} 27... Be7 {[%clk 0:01:01.7]}
28. Kf1 {[%clk 0:00:31.8]} 28... Kg7 {[%clk 0:01:01.9]} 29. Ke2 {[%clk
0:00:29.9]} 29... Nd7 {[%clk 0:01:02]} 30. Nd2 {[%clk 0:00:29.7]} 30... Nf6
{[%clk 0:01:02.1]} 31. f3 {[%clk 0:00:29.3]} 31... h5 {[%clk 0:00:59.4]} 32. Nb3
{[%clk 0:00:28.8]} 32... h4 {[%clk 0:00:54.6]} 33. Rd2 {[%clk 0:00:28.1]} 33...
Nh5 {[%clk 0:00:50.9]} 34. Kf2 {[%clk 0:00:28.4]} 34... f5 {[%clk 0:00:48.4]}
35. exf5 {[%clk 0:00:27.7]} 35... gxf5 {[%clk 0:00:49.3]} 36. Nc5 {[%clk
0:00:27.4]} 36... Nf4 {[%clk 0:00:20.4]} 37. g3 {[%clk 0:00:26.8]} 37... hxg3+
{[%clk 0:00:21.3]} 38. hxg3 {[%clk 0:00:26.9]} 38... Nh3+ {[%clk 0:00:21.9]} 39.
Ke2 {[%clk 0:00:26.7]} 39... Ng5 {[%clk 0:00:20.2]} 40. f4 {[%clk 0:00:24.9]}
40... exf4 {[%clk 0:00:20.8]} 41. gxf4 {[%clk 0:00:25]} 41... Ne4 {[%clk
0:00:21.3]} 42. Nxe4 {[%clk 0:00:23]} 42... fxe4 {[%clk 0:00:22.2]} 43. f5
{[%clk 0:00:22.2]} 43... Bg5 {[%clk 0:00:20.1]} 44. Rd4 {[%clk 0:00:21.8]} 44...
Re8 {[%clk 0:00:20.1]} 45. Be6 {[%clk 0:00:20.7]} 45... Bxe6 {[%clk 0:00:19.6]}
46. fxe6 {[%clk 0:00:21]} 46... Rxe6 {[%clk 0:00:20.5]} 47. Nf5+ {[%clk
0:00:21.2]} 47... Kf6 {[%clk 0:00:20.1]} 48. Nd6 {[%clk 0:00:21.3]} 48... e3
{[%clk 0:00:16.9]} 49. Ne4+ {[%clk 0:00:21.2]} 49... Kf5 {[%clk 0:00:16.7]} 50.
Nc5 {[%clk 0:00:21.2]} 50... Re7 {[%clk 0:00:15.7]} 51. Nxa6 {[%clk 0:00:20.9]}
51... Bf6 {[%clk 0:00:15.5]} 52. Rd3 {[%clk 0:00:20]} 52... Kf4 {[%clk
0:00:15.2]} 53. Nc5 {[%clk 0:00:20.1]} 53... Rh7 {[%clk 0:00:14.6]} 54. Rxe3
{[%clk 0:00:19.8]} 54... Rh2+ {[%clk 0:00:14.9]} 55. Kd3 {[%clk 0:00:20]} 55...
Rh1 {[%clk 0:00:13.8]} 56. Re4+ {[%clk 0:00:20.1]} 56... Kf5 {[%clk 0:00:13.3]}
57. Re2 {[%clk 0:00:19.8]} 57... Ra1 {[%clk 0:00:12.7]} 58. Rf2+ {[%clk
0:00:19.6]} 58... Kg6 {[%clk 0:00:10.9]} 59. Nd7 {[%clk 0:00:19.5]} 59... Bg7
{[%clk 0:00:10.8]} 60. Nc5 {[%clk 0:00:19.2]} 60... Ra3 {[%clk 0:00:10.6]} 61.
Rc2 {[%clk 0:00:18.8]} 61... Kf5 {[%clk 0:00:09.9]} 62. Rf2+ {[%clk 0:00:18.1]}
62... Kg6 {[%clk 0:00:09.2]} 63. Rc2 {[%clk 0:00:17.1]} 63... Be5 {[%clk
0:00:09.5]} 64. Nd7 {[%clk 0:00:16.6]} 64... Bd6 {[%clk 0:00:09]} 65. Kd4 {[%clk
0:00:16.5]} 65... Kf5 {[%clk 0:00:07.9]} 66. Nc5 {[%clk 0:00:16.5]} 66... Be5+
{[%clk 0:00:08]} 67. Kd3 {[%clk 0:00:16.3]} 67... Bd6 {[%clk 0:00:08.6]} 68.
Rf2+ {[%clk 0:00:16.2]} 68... Ke5 {[%clk 0:00:08.2]} 69. Nb7 {[%clk 0:00:16.4]}
69... Bxb4 {[%clk 0:00:07.6]} 70. Re2+ {[%clk 0:00:14.7]} 70... Kd5 {[%clk
0:00:07.7]} 71. Rc2 {[%clk 0:00:14.5]} 71... Bxa5 {[%clk 0:00:08.3]} 72. Nxa5
{[%clk 0:00:14.1]} 72... Rxa5 {[%clk 0:00:09.2]} 73. Rh2 {[%clk 0:00:14.3]}
73... Ra3 {[%clk 0:00:08.9]} 74. Rh5+ {[%clk 0:00:14.4]} 74... Kd6 {[%clk
0:00:09.4]} 75. Kd4 {[%clk 0:00:14.8]} 75... Ra4+ {[%clk 0:00:08.4]} 76. Kd3
{[%clk 0:00:14.8]} 76... Ra3 {[%clk 0:00:09.3]} 77. Kd4 {[%clk 0:00:13.4]} 77...
Ra1 {[%clk 0:00:09.8]} 78. Rh6+ {[%clk 0:00:12.9]} 78... Kd7 {[%clk 0:00:09.4]}
79. Kc5 {[%clk 0:00:13.1]} 79... Rc1 {[%clk 0:00:09.6]} 80. Rd6+ {[%clk
0:00:12.9]} 80... Ke7 {[%clk 0:00:08.1]} 81. Rxc6 {[%clk 0:00:13.1]} 81... Rxc3+
{[%clk 0:00:08.3]} 82. Kxb5 {[%clk 0:00:13.2]} 82... Rxc6 {[%clk 0:00:09.2]} 83.
Kxc6 {[%clk 0:00:13.4]} 1/2-1/2

[Event "*** Titled Tuesday Blitz"]
[Site "Chess.com"]
[Date "2020.04.14"]
[Round "3"]
[White "KoustavChatterjee1"]
[Black "Lupul_Cenusiu"]
[Result "1/2-1/2"]
[WhiteElo "2721"]
[BlackElo "2484"]
[TimeControl "180+1"]
[EndTime "10:30:17 PDT"]
[Termination "Game drawn - insufficient material"]

1. d4 {[%clk 0:03:00.9]} 1... Nf6 {[%clk 0:02:59.1]} 2. Nf3 {[%clk 0:02:58.9]}
2... e6 {[%clk 0:02:59.2]} 3. g3 {[%clk 0:02:59.3]} 3... c5 {[%clk 0:02:58.2]}
4. c4 {[%clk 0:02:57.4]} 4... d5 {[%clk 0:02:57.5]} 5. cxd5 {[%clk 0:02:57]}
5... exd5 {[%clk 0:02:57.1]} 6. Bg2 {[%clk 0:02:57]} 6... h6 {[%clk 0:02:57.3]}
7. O-O {[%clk 0:02:56.9]} 7... Nc6 {[%clk 0:02:57.4]} 8. Nc3 {[%clk 0:02:56.2]}
8... Be7 {[%clk 0:02:55.4]} 9. b3 {[%clk 0:02:56.2]} 9... O-O {[%clk 0:02:54.6]}
10. Bb2 {[%clk 0:02:56.3]} 10... Re8 {[%clk 0:02:54.1]} 11. Rc1 {[%clk 0:02:56]}
11... cxd4 {[%clk 0:02:49.5]} 12. Nxd4 {[%clk 0:02:56]} 12... Bg4 {[%clk
0:02:37.6]} 13. h3 {[%clk 0:02:53.4]} 13... Bh5 {[%clk 0:02:36.9]} 14. Nf5
{[%clk 0:02:34]} 14... Bf8 {[%clk 0:02:35]} 15. g4 {[%clk 0:02:33.3]} 15... Bg6
{[%clk 0:02:32.4]} 16. Nh4 {[%clk 0:02:16.8]} 16... Bh7 {[%clk 0:01:57.1]} 17.
e3 {[%clk 0:02:11.9]} 17... a6 {[%clk 0:01:55.5]} 18. Nf3 {[%clk 0:02:05.3]}
18... Rc8 {[%clk 0:01:50.5]} 19. g5 {[%clk 0:01:56.9]} 19... hxg5 {[%clk
0:01:46.5]} 20. Nxg5 {[%clk 0:01:56.9]} 20... d4 {[%clk 0:01:42.4]} 21. exd4
{[%clk 0:01:54.8]} 21... Nxd4 {[%clk 0:01:37]} 22. Nxh7 {[%clk 0:01:54.1]} 22...
Nxh7 {[%clk 0:01:32.5]} 23. Bxb7 {[%clk 0:01:51.4]} 23... Qg5+ {[%clk
0:01:24.5]} 24. Qg4 {[%clk 0:01:48.6]} 24... Qxg4+ {[%clk 0:01:18.7]} 25. hxg4
{[%clk 0:01:49.5]} 25... Rcd8 {[%clk 0:01:18.9]} 26. Rfe1 {[%clk 0:01:41.1]}
26... Ng5 {[%clk 0:01:16.2]} 27. Kg2 {[%clk 0:01:40.2]} 27... a5 {[%clk
0:01:11.2]} 28. Na4 {[%clk 0:01:32.3]} 28... Nge6 {[%clk 0:01:07.7]} 29. Re4
{[%clk 0:01:23.6]} 29... g5 {[%clk 0:00:59.5]} 30. Rd1 {[%clk 0:01:16.2]} 30...
Bg7 {[%clk 0:00:58.6]} 31. Bxd4 {[%clk 0:01:09]} 31... Nxd4 {[%clk 0:00:57.6]}
32. Rxe8+ {[%clk 0:01:08]} 32... Rxe8 {[%clk 0:00:57.7]} 33. Nc5 {[%clk
0:01:05.8]} 33... Re2 {[%clk 0:00:53.8]} 34. a4 {[%clk 0:01:00.7]} 34... Rb2
{[%clk 0:00:50.7]} 35. Bd5 {[%clk 0:00:58.9]} 35... Ne2 {[%clk 0:00:36.6]} 36.
Nd3 {[%clk 0:00:55.8]} 36... Rc2 {[%clk 0:00:36.2]} 37. Kf3 {[%clk 0:00:51.3]}
37... Nc3 {[%clk 0:00:35.4]} 38. Bxf7+ {[%clk 0:00:47]} 38... Kxf7 {[%clk
0:00:34.5]} 39. Re1 {[%clk 0:00:47.4]} 39... Bf6 {[%clk 0:00:31.9]} 40. Ne5+
{[%clk 0:00:43.7]} 40... Kg7 {[%clk 0:00:30.3]} 41. Nc6 {[%clk 0:00:40.8]} 41...
Nd5 {[%clk 0:00:29.6]} 42. Nxa5 {[%clk 0:00:39.7]} 42... Nf4 {[%clk 0:00:24.7]}
43. Nc4 {[%clk 0:00:38.1]} 43... Bd4 {[%clk 0:00:22.1]} 44. Ke4 {[%clk
0:00:37.6]} 44... Bxf2 {[%clk 0:00:21.5]} 45. Rd1 {[%clk 0:00:38.1]} 45... Kf6
{[%clk 0:00:19.8]} 46. Rd6+ {[%clk 0:00:37.3]} 46... Ne6 {[%clk 0:00:19.8]} 47.
Kd5 {[%clk 0:00:37.4]} 47... Re2 {[%clk 0:00:16]} 48. a5 {[%clk 0:00:37.7]}
48... Bg3 {[%clk 0:00:16.2]} 49. Rb6 {[%clk 0:00:33.7]} 49... Ke7 {[%clk
0:00:16.4]} 50. Rb7+ {[%clk 0:00:33.7]} 50... Kd8 {[%clk 0:00:15.4]} 51. Rh7
{[%clk 0:00:32.2]} 51... Nc7+ {[%clk 0:00:14.6]} 52. Kc6 {[%clk 0:00:32.3]}
52... Re6+ {[%clk 0:00:14.5]} 53. Kb7 {[%clk 0:00:32.2]} 53... Nb5 {[%clk
0:00:14.5]} 54. Nb6 {[%clk 0:00:31.7]} 54... Bf2 {[%clk 0:00:13.8]} 55. Rd7+
{[%clk 0:00:30.5]} 55... Ke8 {[%clk 0:00:13.7]} 56. Rd5 {[%clk 0:00:31]} 56...
Nd6+ {[%clk 0:00:13.6]} 57. Kb8 {[%clk 0:00:31.2]} 57... Bg3 {[%clk 0:00:11.6]}
58. Ka7 {[%clk 0:00:30.4]} 58... Re7+ {[%clk 0:00:11.1]} 59. Ka6 {[%clk
0:00:30.3]} 59... Re6 {[%clk 0:00:10.5]} 60. Ka7 {[%clk 0:00:29.5]} 60... Re7+
{[%clk 0:00:09.7]} 61. Ka8 {[%clk 0:00:28.9]} 61... Kf7 {[%clk 0:00:08.8]} 62.
b4 {[%clk 0:00:28.9]} 62... Re8+ {[%clk 0:00:09]} 63. Ka7 {[%clk 0:00:28.7]}
63... Re7+ {[%clk 0:00:09.3]} 64. Ka6 {[%clk 0:00:28.8]} 64... Re6 {[%clk
0:00:09.6]} 65. Ka7 {[%clk 0:00:28.6]} 65... Re7+ {[%clk 0:00:09.8]} 66. Ka6
{[%clk 0:00:29.1]} 66... Re6 {[%clk 0:00:09.9]} 67. b5 {[%clk 0:00:29.4]} 67...
Bf2 {[%clk 0:00:08.7]} 68. Ka7 {[%clk 0:00:27.9]} 68... Nc4 {[%clk 0:00:08.4]}
69. Rf5+ {[%clk 0:00:26.4]} 69... Rf6 {[%clk 0:00:07.2]} 70. Rxf2 {[%clk
0:00:26.6]} 70... Rxf2 {[%clk 0:00:05]} 71. Nxc4 {[%clk 0:00:27.1]} 71... Rf4
{[%clk 0:00:05]} 72. Nd6+ {[%clk 0:00:26.3]} 72... Ke6 {[%clk 0:00:04.9]} 73.
Nc8 {[%clk 0:00:26.7]} 73... Rxg4 {[%clk 0:00:04.7]} 74. b6 {[%clk 0:00:26.8]}
74... Rb4 {[%clk 0:00:04.6]} 75. b7 {[%clk 0:00:27.2]} 75... Rxb7+ {[%clk
0:00:03.7]} 76. Kxb7 {[%clk 0:00:28.1]} 76... g4 {[%clk 0:00:04.2]} 77. a6
{[%clk 0:00:28.7]} 77... g3 {[%clk 0:00:04.6]} 78. a7 {[%clk 0:00:29.6]} 78...
g2 {[%clk 0:00:05.1]} 79. a8=Q {[%clk 0:00:30.5]} 79... g1=Q {[%clk 0:00:05.3]}
80. Qa6+ {[%clk 0:00:31]} 80... Ke5 {[%clk 0:00:05.1]} 81. Qd6+ {[%clk 0:00:31]}
81... Ke4 {[%clk 0:00:04.8]} 82. Qe6+ {[%clk 0:00:31.4]} 82... Kf3 {[%clk
0:00:04.6]} 83. Qf5+ {[%clk 0:00:31.4]} 83... Kg2 {[%clk 0:00:04.6]} 84. Qe4+
{[%clk 0:00:31.3]} 84... Kf1 {[%clk 0:00:04.5]} 85. Nd6 {[%clk 0:00:31]} 85...
Qg2 {[%clk 0:00:04.2]} 86. Qxg2+ {[%clk 0:00:29.8]} 86... Kxg2 {[%clk
0:00:03.7]} 1/2-1/2

[Event "*** Titled Tuesday Blitz"]
[Site "Chess.com"]
[Date "2020.04.14"]
[Round "3"]
[White "AnishGiri"]
[Black "Angel_Hranitel_37"]
[Result "1-0"]
[WhiteElo "3018"]
[BlackElo "2374"]
[TimeControl "180+1"]
[EndTime "10:30:24 PDT"]
[Termination "AnishGiri won by resignation"]

1. d4 {[%clk 0:03:00.9]} 1... Nf6 {[%clk 0:02:59.5]} 2. c4 {[%clk 0:03:01.2]}
2... g6 {[%clk 0:02:59.5]} 3. Nc3 {[%clk 0:03:01.1]} 3... Bg7 {[%clk 0:03:00]}
4. e4 {[%clk 0:03:01.3]} 4... d6 {[%clk 0:03:00.5]} 5. Nf3 {[%clk 0:03:01.6]}
5... O-O {[%clk 0:03:00.9]} 6. Be2 {[%clk 0:03:02.1]} 6... e5 {[%clk 0:03:01.3]}
7. O-O {[%clk 0:03:02.6]} 7... Nc6 {[%clk 0:03:00.4]} 8. d5 {[%clk 0:03:02.9]}
8... Ne7 {[%clk 0:03:00.5]} 9. b4 {[%clk 0:03:03.4]} 9... Nh5 {[%clk 0:03:00]}
10. Re1 {[%clk 0:03:03.5]} 10... f5 {[%clk 0:02:55.6]} 11. a4 {[%clk 0:03:02.3]}
11... Nf6 {[%clk 0:02:39.5]} 12. a5 {[%clk 0:02:57.5]} 12... Nxe4 {[%clk
0:02:37.8]} 13. Nxe4 {[%clk 0:02:57.2]} 13... fxe4 {[%clk 0:02:38.7]} 14. Ng5
{[%clk 0:02:57.8]} 14... e3 {[%clk 0:02:38]} 15. Bxe3 {[%clk 0:02:57.5]} 15...
Nf5 {[%clk 0:02:37.6]} 16. Bd2 {[%clk 0:02:57.7]} 16... Bh6 {[%clk 0:02:29.3]}
17. Qc1 {[%clk 0:02:54.2]} 17... Nd4 {[%clk 0:02:27.7]} 18. Bd1 {[%clk
0:02:54.4]} 18... Rb8 {[%clk 0:02:21.7]} 19. Ra3 {[%clk 0:02:53]} 19... b5
{[%clk 0:02:04.6]} 20. axb6 {[%clk 0:02:50.4]} 20... axb6 {[%clk 0:01:55.2]} 21.
b5 {[%clk 0:02:44.2]} 21... Bf5 {[%clk 0:01:55.1]} 22. h4 {[%clk 0:02:36.6]}
22... Qd7 {[%clk 0:01:53]} 23. Rg3 {[%clk 0:02:33.1]} 23... Ra8 {[%clk
0:01:51.3]} 24. h5 {[%clk 0:02:32.3]} 24... Bxg5 {[%clk 0:01:39.5]} 25. Bxg5
{[%clk 0:02:29.5]} 25... Ra2 {[%clk 0:01:39.5]} 26. Bh6 {[%clk 0:02:25.1]} 26...
Rfa8 {[%clk 0:01:35.4]} 27. Qg5 {[%clk 0:02:22.5]} 27... Qd8 {[%clk 0:01:33]}
28. Qe3 {[%clk 0:02:11.8]} 28... Nc2 {[%clk 0:01:31.7]} 29. Bxc2 {[%clk
0:02:11.8]} 29... Rxc2 {[%clk 0:01:31.1]} 30. hxg6 {[%clk 0:02:12.2]} 30... hxg6
{[%clk 0:01:30.5]} 31. Bg5 {[%clk 0:02:03.5]} 31... Qf8 {[%clk 0:01:28.9]} 32.
Rc1 {[%clk 0:02:00.5]} 32... Raa2 {[%clk 0:01:24.4]} 33. Rf3 {[%clk 0:01:55.1]}
33... Re2 {[%clk 0:01:20.3]} 34. Qc3 {[%clk 0:01:51.2]} 34... Qc8 {[%clk
0:01:19.9]} 35. Be3 {[%clk 0:01:45.3]} 35... Kg7 {[%clk 0:01:13.5]} 36. Rg3
{[%clk 0:01:44.5]} 36... Qh8 {[%clk 0:01:07.2]} 37. Ra1 {[%clk 0:01:35.5]} 37...
Rec2 {[%clk 0:00:56.5]} 38. Qe1 {[%clk 0:01:34.1]} 38... Re2 {[%clk 0:00:56.9]}
39. Qd1 {[%clk 0:01:30]} 39... Qh4 {[%clk 0:00:53.9]} 40. Rxa2 {[%clk
0:01:17.4]} 40... Rxa2 {[%clk 0:00:54.3]} 41. Qe1 {[%clk 0:00:56.4]} 41... Qxc4
{[%clk 0:00:52.2]} 42. Bg5 {[%clk 0:00:56.9]} 42... Rc2 {[%clk 0:00:47.6]} 43.
Ra3 {[%clk 0:00:56.6]} 43... Qxd5 {[%clk 0:00:41.7]} 44. Ra7 {[%clk 0:00:54.9]}
44... Qxb5 {[%clk 0:00:41.6]} 45. Qe3 {[%clk 0:00:53.8]} 45... Qe8 {[%clk
0:00:16.4]} 46. Qxb6 {[%clk 0:00:51.2]} 46... Qc6 {[%clk 0:00:14.5]} 47. Qb8
{[%clk 0:00:48.6]} 47... Bh3 {[%clk 0:00:10.3]} 48. gxh3 {[%clk 0:00:45.6]}
48... Qc3 {[%clk 0:00:10.8]} 49. Qb1 {[%clk 0:00:33.2]} 49... Re2 {[%clk
0:00:10.6]} 50. Qf1 {[%clk 0:00:31.9]} 50... Re1 {[%clk 0:00:05.9]} 51. Rxc7+
{[%clk 0:00:31.1]} 51... Qxc7 {[%clk 0:00:06.8]} 52. Qxe1 {[%clk 0:00:31.7]}
52... Qd7 {[%clk 0:00:07.7]} 53. Qe3 {[%clk 0:00:31.4]} 53... Qf5 {[%clk
0:00:08.2]} 54. Bh4 {[%clk 0:00:28.4]} 54... Kf7 {[%clk 0:00:06.1]} 55. Kh2
{[%clk 0:00:27.7]} 55... Ke6 {[%clk 0:00:05.3]} 56. Bg3 {[%clk 0:00:28.2]} 56...
Qb1 {[%clk 0:00:05.4]} 57. Qg5 {[%clk 0:00:27.3]} 57... Qc2 {[%clk 0:00:04.7]}
58. Qd8 {[%clk 0:00:26.7]} 58... Qf5 {[%clk 0:00:04.3]} 59. Qg8+ {[%clk
0:00:25.9]} 59... Kf6 {[%clk 0:00:04.9]} 60. Bh4+ {[%clk 0:00:25]} 60... g5
{[%clk 0:00:04]} 61. Qd8+ {[%clk 0:00:23.6]} 61... Kg6 {[%clk 0:00:04.6]} 62.
Qxd6+ {[%clk 0:00:23.8]} 62... Kh5 {[%clk 0:00:05.1]} 63. Bg3 {[%clk 0:00:24.2]}
63... e4 {[%clk 0:00:05.1]} 64. Qe5 {[%clk 0:00:23]} 64... Qf3 {[%clk
0:00:05.3]} 65. Qh8+ {[%clk 0:00:22.5]} 65... Kg6 {[%clk 0:00:05.4]} 66. Qe8+
{[%clk 0:00:22.6]} 66... Kh6 {[%clk 0:00:05.1]} 67. Qe6+ {[%clk 0:00:22.8]}
67... Kh5 {[%clk 0:00:05.2]} 68. Qg4+ {[%clk 0:00:13.8]} 68... Qxg4 {[%clk
0:00:04.7]} 69. hxg4+ {[%clk 0:00:14.7]} 69... Kxg4 {[%clk 0:00:05.6]} 70. Kg2
{[%clk 0:00:15.5]} 70... Kf5 {[%clk 0:00:04.4]} 71. Kf1 {[%clk 0:00:16.1]} 71...
Kg4 {[%clk 0:00:02]} 72. Ke2 {[%clk 0:00:16.4]} 72... Kh3 {[%clk 0:00:01.5]} 73.
Ke3 {[%clk 0:00:16.7]} 73... g4 {[%clk 0:00:01.8]} 74. Kxe4 {[%clk 0:00:17.6]}
74... Kg2 {[%clk 0:00:02.7]} 75. Kf4 {[%clk 0:00:18.1]} 1-0

[Event "*** Titled Tuesday Blitz"]
[Site "Chess.com"]
[Date "2020.04.14"]
[Round "3"]
[White "Megagigahiper3345"]
[Black "mapebo94"]
[Result "1/2-1/2"]
[WhiteElo "2492"]
[BlackElo "1852"]
[TimeControl "180+1"]
[EndTime "10:30:24 PDT"]
[Termination "Game drawn by repetition"]

1. d4 {[%clk 0:03:00.9]} 1... e6 {[%clk 0:03:00.9]} 2. c4 {[%clk 0:02:58]} 2...
d5 {[%clk 0:03:01.8]} 3. Nf3 {[%clk 0:02:56.4]} 3... Nf6 {[%clk 0:03:00.8]} 4.
Nc3 {[%clk 0:02:56.1]} 4... Be7 {[%clk 0:03:00.5]} 5. Bg5 {[%clk 0:02:55.5]}
5... O-O {[%clk 0:02:59.9]} 6. e3 {[%clk 0:02:55.7]} 6... b6 {[%clk 0:02:59.4]}
7. cxd5 {[%clk 0:02:55.1]} 7... exd5 {[%clk 0:02:58.4]} 8. Bxf6 {[%clk
0:02:55.2]} 8... Bxf6 {[%clk 0:02:58]} 9. Bd3 {[%clk 0:02:53]} 9... Bb7 {[%clk
0:02:55.2]} 10. O-O {[%clk 0:02:52.8]} 10... g6 {[%clk 0:02:55.1]} 11. Ne5
{[%clk 0:02:48.2]} 11... Bg7 {[%clk 0:02:49.6]} 12. f4 {[%clk 0:02:47.5]} 12...
Nc6 {[%clk 0:02:45.4]} 13. Rc1 {[%clk 0:02:42.9]} 13... Ne7 {[%clk 0:02:38.4]}
14. h4 {[%clk 0:02:25.1]} 14... f6 {[%clk 0:02:31.3]} 15. Nf3 {[%clk 0:02:22.2]}
15... Bc8 {[%clk 0:02:28.7]} 16. h5 {[%clk 0:02:20.1]} 16... gxh5 {[%clk
0:02:21.6]} 17. Nh4 {[%clk 0:02:16.7]} 17... Bg4 {[%clk 0:02:20.1]} 18. Qc2
{[%clk 0:02:10.3]} 18... f5 {[%clk 0:02:17.6]} 19. g3 {[%clk 0:01:49.6]} 19...
Qd7 {[%clk 0:01:59.7]} 20. Qb3 {[%clk 0:01:44.1]} 20... c6 {[%clk 0:01:58]} 21.
Kf2 {[%clk 0:01:37.2]} 21... Rac8 {[%clk 0:01:50]} 22. Qa3 {[%clk 0:01:35.4]}
22... Ng6 {[%clk 0:01:44.7]} 23. Ng2 {[%clk 0:01:26.9]} 23... Rfe8 {[%clk
0:01:42.2]} 24. Rh1 {[%clk 0:01:24.7]} 24... Re7 {[%clk 0:01:37.3]} 25. Qa4
{[%clk 0:00:48]} 25... Rce8 {[%clk 0:01:33.5]} 26. Ne2 {[%clk 0:00:36.2]} 26...
Re6 {[%clk 0:01:15.3]} 27. Ng1 {[%clk 0:00:27.5]} 27... Qe7 {[%clk 0:00:49.8]}
28. Re1 {[%clk 0:00:27.5]} 28... b5 {[%clk 0:00:47.7]} 29. Qc2 {[%clk
0:00:26.1]} 29... Bxd4 {[%clk 0:00:44.1]} 30. Bxf5 {[%clk 0:00:18.4]} 30...
Bxe3+ {[%clk 0:00:41]} 31. Nxe3 {[%clk 0:00:13.7]} 31... Rxe3 {[%clk 0:00:40.3]}
32. Bxg6 {[%clk 0:00:14]} 32... Rxe1 {[%clk 0:00:38.8]} 33. Bxe8 {[%clk
0:00:13.9]} 33... Qe3+ {[%clk 0:00:36.9]} 34. Kg2 {[%clk 0:00:14.1]} 34... Qxe8
{[%clk 0:00:33.2]} 35. Rh2 {[%clk 0:00:10.2]} 35... Qe4+ {[%clk 0:00:29.9]} 36.
Qxe4 {[%clk 0:00:10.1]} 36... dxe4 {[%clk 0:00:27]} 37. Kf2 {[%clk 0:00:10.6]}
37... Rb1 {[%clk 0:00:23.7]} 38. Rh4 {[%clk 0:00:10.2]} 38... Rxb2+ {[%clk
0:00:23.2]} 39. Ke3 {[%clk 0:00:10.9]} 39... Bf5 {[%clk 0:00:17.8]} 40. Nh3
{[%clk 0:00:10.9]} 40... Bxh3 {[%clk 0:00:17.4]} 41. Rxh3 {[%clk 0:00:11.8]}
41... Rxa2 {[%clk 0:00:17.6]} 42. Rxh5 {[%clk 0:00:12.2]} 42... Ra3+ {[%clk
0:00:16.2]} 43. Kxe4 {[%clk 0:00:12.2]} 43... Rxg3 {[%clk 0:00:16.3]} 44. Rc5
{[%clk 0:00:12.9]} 44... Rg6 {[%clk 0:00:15.2]} 45. f5 {[%clk 0:00:13.3]} 45...
Rf6 {[%clk 0:00:15]} 46. Ke5 {[%clk 0:00:13.9]} 46... Kf7 {[%clk 0:00:15.2]} 47.
Rc2 {[%clk 0:00:14.2]} 47... Rh6 {[%clk 0:00:14.8]} 48. Rd2 {[%clk 0:00:13.7]}
48... Ke7 {[%clk 0:00:14.2]} 49. Rg2 {[%clk 0:00:14.2]} 49... Rf6 {[%clk
0:00:10.8]} 50. Rg7+ {[%clk 0:00:13.4]} 50... Rf7 {[%clk 0:00:11]} 51. f6+
{[%clk 0:00:14]} 51... Kf8 {[%clk 0:00:10.5]} 52. Rg2 {[%clk 0:00:14.6]} 52...
a5 {[%clk 0:00:09.4]} 53. Rd2 {[%clk 0:00:14.5]} 53... Rc7 {[%clk 0:00:09.5]}
54. Ke6 {[%clk 0:00:12.4]} 54... Rc8 {[%clk 0:00:09]} 55. f7 {[%clk 0:00:12.9]}
55... c5 {[%clk 0:00:08]} 56. Rg2 {[%clk 0:00:13.5]} 56... Rc6+ {[%clk
0:00:08.2]} 57. Kd5 {[%clk 0:00:12.2]} 57... Rf6 {[%clk 0:00:08.4]} 58. Kxc5
{[%clk 0:00:12.5]} 58... Kxf7 {[%clk 0:00:08.7]} 59. Kxb5 {[%clk 0:00:13]} 59...
Rf5+ {[%clk 0:00:09.2]} 60. Ka4 {[%clk 0:00:13.2]} 60... h5 {[%clk 0:00:09.6]}
61. Rh2 {[%clk 0:00:13.7]} 61... Kf6 {[%clk 0:00:10.1]} 62. Rh3 {[%clk
0:00:14.3]} 62... Kg5 {[%clk 0:00:10.5]} 63. Rh1 {[%clk 0:00:14.7]} 63... Kg4
{[%clk 0:00:10.8]} 64. Rg1+ {[%clk 0:00:15]} 64... Kf3 {[%clk 0:00:10.7]} 65.
Rf1+ {[%clk 0:00:15.1]} 65... Kg4 {[%clk 0:00:11.1]} 66. Rg1+ {[%clk 0:00:15.7]}
66... Kf4 {[%clk 0:00:11.3]} 67. Rf1+ {[%clk 0:00:15.9]} 67... Ke4 {[%clk
0:00:11.2]} 68. Re1+ {[%clk 0:00:15.6]} 68... Kf4 {[%clk 0:00:09.6]} 69. Rf1+
{[%clk 0:00:16]} 69... Kg5 {[%clk 0:00:10.2]} 70. Rg1+ {[%clk 0:00:16.5]} 70...
Kf6 {[%clk 0:00:10.6]} 71. Rh1 {[%clk 0:00:16.5]} 71... Kg6 {[%clk 0:00:10.1]}
72. Rg1+ {[%clk 0:00:16.9]} 72... Rg5 {[%clk 0:00:10.6]} 73. Rh1 {[%clk
0:00:17.5]} 73... Rg4+ {[%clk 0:00:10.6]} 74. Kxa5 {[%clk 0:00:18]} 74... Kg5
{[%clk 0:00:10.9]} 75. Kb5 {[%clk 0:00:18.7]} 75... h4 {[%clk 0:00:11.3]} 76.
Kc5 {[%clk 0:00:18.7]} 76... Re4 {[%clk 0:00:11.5]} 77. Kd5 {[%clk 0:00:18.5]}
77... Re8 {[%clk 0:00:11.3]} 78. Rg1+ {[%clk 0:00:18.8]} 78... Kf4 {[%clk
0:00:10.1]} 79. Rf1+ {[%clk 0:00:18.9]} 79... Kg3 {[%clk 0:00:10.1]} 80. Rf7
{[%clk 0:00:19.2]} 80... h3 {[%clk 0:00:09.4]} 81. Kd4 {[%clk 0:00:18.7]} 81...
h2 {[%clk 0:00:08.5]} 82. Rg7+ {[%clk 0:00:18.1]} 82... Kf2 {[%clk 0:00:07.5]}
83. Rf7+ {[%clk 0:00:18.3]} 83... Kg1 {[%clk 0:00:07.4]} 84. Rg7+ {[%clk
0:00:18.7]} 84... Kf1 {[%clk 0:00:07.9]} 85. Rf7+ {[%clk 0:00:18.8]} 85... Kg2
{[%clk 0:00:08.3]} 86. Rg7+ {[%clk 0:00:19.2]} 86... Kf3 {[%clk 0:00:08.7]} 87.
Rf7+ {[%clk 0:00:19.5]} 87... Kg3 {[%clk 0:00:08.9]} 88. Rg7+ {[%clk 0:00:19.9]}
88... Kf4 {[%clk 0:00:09.3]} 89. Rf7+ {[%clk 0:00:20.1]} 89... Kg4 {[%clk
0:00:08.5]} 90. Rg7+ {[%clk 0:00:20.2]} 90... Kf3 {[%clk 0:00:08.6]} 91. Rf7+
{[%clk 0:00:20.4]} 91... Kg2 {[%clk 0:00:07.7]} 92. Rg7+ {[%clk 0:00:20.9]}
92... Kh3 {[%clk 0:00:07.8]} 93. Rh7+ {[%clk 0:00:21.3]} 93... Kg2 {[%clk
0:00:08.3]} 94. Rg7+ {[%clk 0:00:21.9]} 1/2-1/2